fUSD/lending_fUSD_20240505
["ID","MTS","AMOUNT","RATE_DAILY","PERIOD"]
[326444771,1714915856273,-1993.89,0.0003315,5]
[326444772,1714915856284,-521.92,0.0003315,5]
[326444773,1714915856295,-831.6,0.0003315,5]
[326444774,1714915856304,-500.0,0.0003315,5]
[326444775,1714915856314,-1079.33,0.0003315,5]
[326444776,1714915856323,-1831.59,0.0003315,5]
[326444777,1714915856334,-8414.0,0.0003315,5]
[326444778,1714915856344,-2427.21,0.0003315,5]
[326444779,1714915856354,-500.0,0.0003315,5]
[326444780,1714915856364,-5303.85,0.0003315,5]
[326444781,1714915856374,-1775.51,0.0003315,5]
[326444782,1714915856383,-5490.49,0.0003315,5]
[326444783,1714915856392,-4588.6,0.0003315,5]
[326444784,1714915856401,-1455.28,0.0003315,5]
[326444785,1714915856410,-1465.44,0.0003315,5]
[326444786,1714915856423,-509.46,0.0003315,5]
[326444787,1714915856432,-15635.43,0.0003315,5]
[326444788,1714915856442,-30934.75,0.0003315,5]
[326444789,1714915856451,-8885.57,0.0003315,5]
[326444790,1714915856462,-6939.18,0.0003315,5]
[326444791,1714915856471,-500.0,0.0003315,5]
[326444792,1714915856481,-24294.82,0.0003315,5]
[326444793,1714915856492,-3388.55,0.0003315,5]
[326444794,1714915856504,-1239.15,0.0003315,5]
[326444795,1714915856514,-1798.71,0.0003315,5]
[326444796,1714915856525,-15111.33,0.0003315,5]
[326444797,1714915856536,-2498.11,0.0003315,5]
[326444798,1714915856546,-2140.6,0.0003315,5]
[326444799,1714915856565,-4894.16,0.0003315,5]
[326444800,1714915856576,-513.67,0.0003315,5]
[326444801,1714915856588,-7195.43,0.0003315,5]
[326444802,1714915856601,-605.45,0.0003315,5]
[326444803,1714915856614,-720.25,0.0003315,5]
[326444804,1714915856624,-3350.4,0.0003315,5]
[326444805,1714915856634,-2007.91,0.0003315,5]
[326444806,1714915856644,-1480.46,0.0003315,5]
[326444807,1714915856653,-4600.17,0.0003315,5]
[326444808,1714915856662,-6247.31,0.0003315,5]
[326444809,1714915856671,-941.38,0.0003315,5]
[326444810,1714915856681,-5529.77,0.0003315,5]
[326444811,1714915856690,-1802.34,0.0003315,5]
[326444812,1714915856701,-3730.21,0.0003315,5]
[326444813,1714915856710,-500.0,0.0003315,5]
[326444814,1714915856720,-5522.61,0.0003315,5]
[326444815,1714915856729,-2386.12,0.0003315,5]
[326444816,1714915856742,-69451.25,0.0003315,5]
[326444817,1714915856751,-17267.81,0.0003315,5]
[326444818,1714915856760,-940.56,0.0003315,5]
[326444819,1714915856769,-263.53802241,0.0003315,5]
[326444820,1714915856778,-500.0,0.0003315,5]
[326444821,1714915856787,-2059.23,0.0003315,5]
[326444822,1714915856796,-310.60184477,0.0003315,5]
[326444823,1714915856806,-4875.89,0.0003315,5]
[326444824,1714915856815,-1765.66,0.0003315,5]
[326444825,1714915856825,-500.0,0.0003315,5]
[326444826,1714915856837,-500.0,0.0003315,5]
[326444827,1714915856846,-4957.65,0.0003315,5]
[326444828,1714915856856,-3790.19,0.0003315,5]
[326444829,1714915856865,-4018.28,0.0003315,5]
[326444830,1714915856875,-500.0,0.0003315,5]
[326444831,1714915856885,-7084.1,0.0003315,5]
[326444832,1714915856896,-3318.52,0.0003315,5]
[326444833,1714915856906,-500.0,0.0003315,5]
[326444834,1714915856916,-4177.62,0.0003315,5]
[326444835,1714915856925,-1507.63,0.0003315,5]
[326444836,1714915856934,-754.04,0.0003315,5]
[326444837,1714915856943,-5879.51,0.0003315,5]
[326444838,1714915856953,-2805.64,0.0003315,5]
[326444839,1714915856962,-3812.68,0.0003315,5]
[326444840,1714915856971,-9642.06,0.0003315,5]
[326444841,1714915856980,-561.09,0.0003315,5]
[326444842,1714915856991,-500.0,0.0003315,5]
[326444843,1714915857000,-500.0,0.0003315,5]
[326444844,1714915857009,-4065.58,0.0003315,5]
[326444845,1714915857018,-1084.59,0.0003315,5]
[326444846,1714915857027,-500.0,0.0003315,5]
[326444847,1714915857037,-4272.51,0.0003315,5]
[326444848,1714915857185,-8551.3,0.0003315,5]
[326444849,1714915857195,-4435.83,0.0003315,5]
[326444850,1714915857208,-5333.56,0.0003315,5]
[326444851,1714915857218,-6828.25,0.0003315,5]
[326444852,1714915857227,-1521.12,0.0003315,5]
[326444853,1714915857236,-3170.47,0.0003315,5]
[326444854,1714915857247,-1351.61,0.0003315,5]
[326444855,1714915857255,-681.05,0.0003315,5]
[326444856,1714915857264,-500.0,0.0003315,5]
[326444857,1714915857273,-8295.7,0.0003315,5]
[326444858,1714915857283,-500.0,0.0003315,5]
[326444859,1714915857292,-2108.87,0.0003315,5]
[326444860,1714915857302,-507.95,0.0003315,5]
[326444861,1714915857311,-4558.37,0.0003315,5]
[326444862,1714915857321,-2389.78,0.0003315,5]
[326444863,1714915857330,-2122.33,0.0003315,5]
[326444864,1714915857340,-13853.01,0.0003315,5]
[326444865,1714915857350,-3331.4,0.0003315,5]
[326444866,1714915857359,-1498.97,0.0003315,5]
[326444867,1714915857368,-1462.76,0.0003315,5]
[326444868,1714915857378,-500.0,0.0003315,5]
[326444869,1714915857387,-503.66377868,0.0003315,5]
[326444870,1714915857396,-500.0,0.0003315,5]
[326444871,1714915857406,-5038.55,0.0003315,5]
[326444872,1714915857415,-500.0,0.0003315,5]
[326444873,1714915857425,-500.0,0.0003315,5]
[326444874,1714915857434,-2135.41,0.0003315,5]
[326444875,1714915857443,-3362.19,0.0003315,5]
[326444876,1714915857453,-1239.44,0.0003315,5]
[326444877,1714915857462,-2835.44,0.0003315,5]
[326444878,1714915857471,-2315.78,0.0003315,5]
[326444879,1714915857481,-10892.57,0.0003315,5]
[326444880,1714915857491,-50713.72,0.0003315,5]
[326444881,1714915857500,-10513.89,0.0003315,5]
[326444882,1714915857509,-500.0,0.0003315,5]
[326444883,1714915857519,-500.0,0.0003315,5]
[326444884,1714915857528,-14214.53,0.0003315,5]
[326444885,1714915857538,-615.37150274,0.0003315,5]
[326444886,1714915857548,-500.0,0.0003315,5]
[326444887,1714915857557,-17977.13,0.0003315,5]
[326444888,1714915857566,-690.67,0.0003315,5]
[326444889,1714915857575,-2665.74,0.0003315,5]
[326444890,1714915857584,-500.0,0.0003315,5]
[326444891,1714915857593,-11902.06,0.0003315,5]
[326444892,1714915857603,-509.25252315,0.0003315,5]
[326444893,1714915857612,-714.36,0.0003315,5]
[326444894,1714915857621,-1229.29,0.0003315,5]
[326444895,1714915857632,-1153.38,0.0003315,5]
[326444896,1714915857641,-1369.3,0.0003315,5]
[326444897,1714915857651,-9044.7,0.0003315,5]
[326444898,1714915857660,-1605.66,0.0003315,5]
[326444899,1714915857670,-553.2914018,0.0003315,5]
[326444900,1714915857679,-500.0,0.0003315,5]
[326444901,1714915857688,-7530.19,0.0003315,5]
[326444902,1714915857698,-5886.12,0.0003315,5]
[326444903,1714915857707,-3203.3,0.0003315,5]
[326444904,1714915857718,-2071.85,0.0003315,5]
[326444905,1714915857727,-2470.94,0.0003315,5]
[326444906,1714915857741,-500.0,0.0003315,5]
[326444907,1714915857750,-500.0,0.0003315,5]
[326444908,1714915857758,-4705.29,0.0003315,5]
[326444909,1714915857767,-2726.24,0.0003315,5]
[326444910,1714915857776,-2276.25,0.0003315,5]
[326444911,1714915857786,-500.0,0.0003315,5]
[326444912,1714915857795,-8502.89,0.0003315,5]
[326444913,1714915857805,-500.0,0.0003315,5]
[326444914,1714915857815,-4607.88,0.0003315,5]
[326444915,1714915857824,-613.39,0.0003315,5]
[326444916,1714915857833,-838.85,0.0003315,5]
[326444917,1714915857842,-1527.86,0.0003315,5]
[326444918,1714915857851,-500.0,0.0003315,5]
[326444919,1714915857860,-5667.8,0.0003315,5]
[326444920,1714915857870,-8969.31,0.0003315,5]
[326444921,1714915857880,-500.0,0.0003315,5]
[326444922,1714915857889,-1879.25,0.0003315,5]
[326444923,1714915857899,-2607.17,0.0003315,5]
[326444924,1714915857908,-500.0,0.0003315,5]
[326444925,1714915857917,-5123.78,0.0003315,5]
[326444926,1714915857926,-2388.99,0.0003315,5]
[326444927,1714915857936,-903.73,0.0003315,5]
[326444928,1714915857945,-744.91,0.0003315,5]
[326444929,1714915857954,-2263.71,0.0003315,5]
[326444930,1714915857964,-5194.94,0.0003315,5]
[326444931,1714915857973,-696.37,0.0003315,5]
[326444932,1714915857982,-4597.47,0.0003315,5]
[326444933,1714915857994,-692.63,0.0003315,5]
[326444934,1714915858004,-977.21,0.0003315,5]
[326444935,1714915858013,-617.21,0.0003315,5]
[326444936,1714915858024,-1364.11,0.0003315,5]
[326444937,1714915858033,-500.0,0.0003315,5]
[326444938,1714915858043,-11629.41,0.0003315,5]
[326444939,1714915858054,-500.0,0.0003315,5]
[326444940,1714915858068,-1747.92,0.0003315,5]
[326444941,1714915858078,-1400.34,0.0003315,5]
[326444942,1714915858087,-3096.31,0.0003315,5]
[326444943,1714915858096,-500.0,0.0003315,5]
[326444944,1714915858108,-5969.29,0.0003315,5]
[326444945,1714915858119,-1015.77,0.0003315,5]
[326444946,1714915858129,-500.0,0.0003315,5]
[326444947,1714915858138,-1117.96,0.0003315,5]
[326444948,1714915858148,-784.12,0.0003315,5]
[326444949,1714915858157,-586.83,0.0003315,5]
[326444950,1714915858166,-500.0,0.0003315,5]
[326444951,1714915858176,-2175.8,0.0003315,5]
[326444952,1714915858185,-414.76,0.00033288,2]
[326444953,1714915858196,-152.10551906,0.00033352,2]
[326444954,1714915858207,-5243.39034367,0.00033412,5]
[326444955,1714915858216,-3405.8,0.00033423,16]
[326444956,1714915858225,-981.79,0.00033424,6]
[326444957,1714915858234,-2040.13,0.00033424,6]
[326444958,1714915858243,-731.26,0.00033424,6]
[326444959,1714915858252,-1079.74,0.00033424,6]
[326444960,1714915858262,-1337.71,0.00033424,6]
[326444961,1714915858271,-500.0,0.00033424,6]
[326444962,1714915858280,-876.4,0.00033424,6]
[326444963,1714915858290,-3101.41,0.00033424,6]
[326444964,1714915858299,-627.2,0.00033424,6]
[326444965,1714915858308,-594.18,0.00033424,6]
[326444966,1714915858317,-989.83,0.00033424,6]
[326444967,1714915858326,-597.1,0.00033424,6]
[326444968,1714915858335,-500.0,0.00033424,6]
[326444969,1714915858345,-1689.15,0.00033424,6]
[326444970,1714915858354,-2343.43,0.00033424,6]
[326444971,1714915858364,-642.33,0.00033424,6]
[326444972,1714915858373,-2302.68,0.00033424,6]
[326444973,1714915858383,-500.0,0.00033424,6]
[326444974,1714915858392,-1805.51,0.00033424,6]
[326444975,1714915858402,-500.0,0.00033424,6]
[326444976,1714915858411,-500.0,0.00033424,6]
[326444977,1714915858420,-782.5,0.00033424,6]
[326444978,1714915858429,-3452.97,0.00033424,6]
[326444979,1714915858439,-1353.31,0.00033424,6]
[326444980,1714915858449,-500.0,0.00033424,6]
[326444981,1714915858459,-1480.66,0.00033424,6]
[326444982,1714915858471,-818.96,0.00033424,6]
[326444983,1714915858480,-500.0,0.00033424,6]
[326444984,1714915858490,-2042.7,0.00033424,6]
[326444985,1714915858499,-500.0,0.00033424,6]
[326444986,1714915858508,-1595.12,0.00033424,6]
[326444987,1714915858517,-1939.6,0.00033424,6]
[326444988,1714915858526,-500.0,0.00033424,6]
[326444989,1714915858535,-581.13,0.00033424,6]
[326444990,1714915858545,-3387.56,0.00033424,6]
[326444991,1714915858554,-880.76,0.00033424,6]
[326444992,1714915858563,-1944.07,0.00033424,6]
[326444993,1714915858572,-500.0,0.00033424,6]
[326444994,1714915858581,-806.39,0.00033424,6]
[326444995,1714915858590,-724.09,0.00033424,6]
[326444996,1714915858600,-2108.93,0.00033424,6]
[326444997,1714915858609,-1670.81,0.00033424,6]
[326444998,1714915858618,-500.0,0.00033424,6]
[326444999,1714915858626,-1039.87,0.00033424,6]
[326445000,1714915858635,-1638.75,0.00033424,6]
[326445001,1714915858644,-2155.45,0.00033424,6]
[326445002,1714915858654,-500.0,0.00033424,6]
[326445003,1714915858663,-772.66,0.00033424,6]
[326445004,1714915858673,-1025.2,0.00033424,6]
[326445005,1714915858682,-1717.6,0.00033424,6]
[326445006,1714915858691,-1651.01,0.00033424,6]
[326445007,1714915858700,-1939.75,0.00033424,6]
[326445008,1714915858709,-1227.88,0.00033424,6]
[326445009,1714915858718,-1682.89,0.00033424,6]
[326445010,1714915858727,-265.82,0.00033424,6]
[326445011,1714915858736,-1747.37,0.00033424,6]
[326445012,1714915858747,-1205.56,0.00033424,6]
[326445013,1714915858756,-500.0,0.00033424,6]
[326445014,1714915858765,-241.41610373,0.00033424,6]
[326445015,1714915858774,-2215.85,0.00033424,6]
[326445016,1714915858783,-649.64,0.00033424,6]
[326445017,1714915858792,-566.84,0.00033424,6]
[326445018,1714915858802,-500.0,0.00033424,6]
[326445019,1714915858812,-1356.01,0.00033424,6]
[326445020,1714915858821,-500.0,0.00033424,6]
[326445021,1714915858830,-1176.3,0.00033424,6]
[326445022,1714915858840,-1366.45,0.00033424,6]
[326445023,1714915858849,-684.39,0.00033424,6]
[326445024,1714915858858,-920.07,0.00033424,6]
[326445025,1714915858867,-879.33,0.00033424,6]
[326445026,1714915858877,-1031.58,0.00033424,6]
[326445027,1714915858885,-2063.31,0.00033424,6]
[326445028,1714915858895,-2434.24,0.00033424,6]
[326445029,1714915858905,-597.44,0.00033424,6]
[326445030,1714915858913,-713.31,0.00033424,6]
[326445031,1714915858922,-500.0,0.00033424,2]
[326445032,1714915858931,-600.45,0.00033424,6]
[326445033,1714915858940,-500.0,0.00033424,6]
[326445034,1714915858951,-952.7,0.00033424,6]
[326445035,1714915858960,-500.0,0.00033424,6]
[326445036,1714915858970,-802.54,0.00033424,6]
[326445037,1714915858979,-1024.94,0.00033424,6]
[326445038,1714915858990,-802.41,0.00033424,6]
[326445039,1714915859000,-687.56,0.00033424,6]
[326445040,1714915859009,-2386.25,0.00033424,6]
[326445041,1714915859017,-157.57622289,0.00033424,6]
[326445042,1714915859025,-1223.23,0.00033424,6]
[326445043,1714915859035,-854.56,0.00033424,6]
[326445044,1714915859043,-500.0,0.00033424,6]
[326445045,1714915859053,-500.0,0.00033424,6]
[326445046,1714915859062,-500.0,0.00033424,6]
[326445047,1714915859071,-1748.83,0.00033424,6]
[326445048,1714915859080,-527.62,0.00033424,6]
[326445049,1714915859089,-803.14,0.00033424,6]
[326445050,1714915859099,-3740.0,0.00033424,6]
[326445051,1714915859107,-1004.08,0.00033424,6]
[326445052,1714915859117,-513.76813286,0.00033424,6]
[326445053,1714915859126,-1502.83,0.00033424,6]
[326445054,1714915859135,-500.0,0.00033424,6]
[326445055,1714915859144,-500.0,0.00033424,6]
[326445056,1714915859154,-500.0,0.00033424,6]
[326445057,1714915859162,-1438.2,0.00033424,6]
[326445058,1714915859171,-506.47415894,0.00033424,6]
[326445059,1714915859181,-500.0,0.00033424,6]
[326445060,1714915859190,-500.0,0.00033424,6]
[326445061,1714915859204,-500.0,0.00033424,6]
[326445062,1714915859213,-500.0,0.00033424,6]
[326445063,1714915859222,-1909.06,0.00033424,6]
[326445064,1714915859231,-913.79,0.00033424,6]
[326445065,1714915859242,-577.34,0.00033424,6]
[326445066,1714915859251,-500.0,0.00033424,6]
[326445067,1714915859260,-596.69,0.00033424,6]
[326445068,1714915859269,-660.81,0.00033424,6]
[326445069,1714915859280,-717.92,0.00033424,6]
[326445070,1714915859290,-605.11,0.00033424,6]
[326445071,1714915859298,-500.0,0.00033424,6]
[326445072,1714915859307,-500.0,0.00033424,6]
[326445073,1714915859316,-986.28,0.00033424,6]
[326445074,1714915859325,-776.57,0.00033424,6]
[326445075,1714915859334,-1164.45,0.00033424,6]
[326445076,1714915859343,-1851.14,0.00033424,6]
[326445077,1714915859353,-500.0,0.00033424,6]
[326445078,1714915859362,-1222.01,0.00033424,6]
[326445079,1714915859372,-500.0,0.00033424,6]
[326445080,1714915859381,-589.56,0.00033424,6]
[326445081,1714915859390,-801.86,0.00033424,6]
[326445082,1714915859399,-532.46622866,0.00033424,6]
[326445083,1714915859408,-500.0,0.00033424,6]
[326445084,1714915859417,-1661.78,0.00033424,6]
[326445085,1714915859426,-628.8,0.00033424,6]
[326445086,1714915859435,-500.0,0.00033424,6]
[326445087,1714915859444,-2313.78,0.00033424,6]
[326445088,1714915859453,-1704.0,0.00033424,6]
[326445089,1714915859462,-2846.64,0.00033424,6]
[326445090,1714915859471,-500.0,0.00033424,6]
[326445091,1714915859480,-500.0,0.00033424,6]
[326445092,1714915859489,-1167.95,0.00033424,6]
[326445093,1714915859500,-1036.27,0.00033424,6]
[326445094,1714915859509,-1244.75,0.00033424,6]
[326445095,1714915859518,-500.0,0.00033424,6]
[326445096,1714915859527,-1662.54,0.00033424,6]
[326445097,1714915859536,-500.0,0.00033424,6]
[326445098,1714915859545,-1214.84,0.00033424,6]
[326445099,1714915859554,-1924.39,0.00033424,6]
[326445100,1714915859563,-500.0,0.00033424,6]
[326445101,1714915859572,-2178.68,0.00033424,6]
[326445102,1714915859581,-707.19,0.00033424,6]
[326445103,1714915859590,-538.64,0.00033424,6]
[326445104,1714915859599,-1834.53,0.00033424,6]
[326445105,1714915859609,-500.0,0.00033424,6]
[326445106,1714915859618,-727.02,0.00033424,6]
[326445107,1714915859627,-2359.18,0.00033424,6]
[326445108,1714915859636,-592.28,0.00033424,6]
[326445109,1714915859645,-728.13,0.00033424,6]
[326445110,1714915859654,-500.0,0.00033424,6]
[326445111,1714915859663,-830.03,0.00033424,6]
[326445112,1714915859673,-5000.0,0.00033424,6]
[326445113,1714915859682,-678.1,0.00033424,6]
[326445114,1714915859691,-666.82,0.00033424,6]
[326445115,1714915859700,-500.0,0.00033424,6]
[326445116,1714915859709,-850.81,0.00033424,6]
[326445117,1714915859718,-1351.18,0.00033424,6]
[326445118,1714915859727,-1570.77,0.00033424,6]
[326445119,1714915859736,-500.0,0.00033424,6]
[326445120,1714915859747,-500.0,0.00033424,6]
[326445121,1714915859756,-587.14,0.00033424,6]
[326445122,1714915859765,-1869.51,0.00033424,6]
[326445123,1714915859774,-353.90861537,0.00033424,6]
[326445124,1714915859784,-1759.58,0.00033424,6]
[326445125,1714915859794,-2359.56,0.00033424,6]
[326445126,1714915859803,-844.39,0.00033424,6]
[326445127,1714915859813,-500.0,0.00033424,6]
[326445128,1714915859822,-1055.67,0.00033424,6]
[326445129,1714915859832,-513.49,0.00033424,6]
[326445130,1714915859842,-1478.45,0.00033424,6]
[326445131,1714915859852,-1000.0,0.00033424,6]
[326445132,1714915859861,-756.48,0.00033424,6]
[326445133,1714915859870,-500.0,0.00033424,6]
[326445134,1714915859881,-973.01,0.00033424,6]
[326445135,1714915859895,-687.56,0.00033424,6]
[326445136,1714915859905,-2401.96,0.00033424,6]
[326445137,1714915859915,-2109.99,0.00033424,6]
[326445138,1714915859923,-500.0,0.00033424,6]
[326445139,1714915859933,-531.18,0.00033424,6]
[326445140,1714915859942,-662.28,0.00033424,6]
[326445141,1714915859952,-1671.18,0.00033424,6]
[326445142,1714915859961,-2339.15,0.00033424,6]
[326445143,1714915859970,-669.8,0.00033424,6]
[326445144,1714915859980,-500.0,0.00033424,6]
[326445145,1714915859989,-774.07,0.00033424,6]
[326445146,1714915860000,-907.67,0.00033424,6]
[326445147,1714915860009,-618.04,0.00033424,6]
[326445148,1714915860018,-1898.13,0.00033424,6]
[326445149,1714915860028,-500.0,0.00033424,6]
[326445150,1714915860037,-1680.72,0.00033424,6]
[326445151,1714915860046,-643.34,0.00033424,6]
[326445152,1714915860055,-500.0,0.00033424,6]
[326445153,1714915860065,-569.24,0.00033424,6]
[326445154,1714915860074,-521.08837622,0.00033424,6]
[326445155,1714915860082,-775.67,0.00033424,6]
[326445156,1714915860092,-500.0,0.00033424,6]
[326445157,1714915860101,-530.04,0.00033424,6]
[326445158,1714915860110,-582.48,0.00033424,6]
[326445159,1714915860119,-500.0,0.00033424,6]
[326445160,1714915860129,-1161.44,0.00033424,6]
[326445161,1714915860138,-500.0,0.00033424,6]
[326445162,1714915860147,-2117.46,0.00033424,6]
[326445163,1714915860156,-500.0,0.00033424,6]
[326445164,1714915860166,-2232.6,0.00033424,6]
[326445165,1714915860175,-1520.5,0.00033424,6]
[326445166,1714915860184,-1838.26,0.00033424,6]
[326445167,1714915860194,-500.0,0.00033424,6]
[326445168,1714915860210,-500.0,0.00033424,6]
[326445169,1714915860219,-500.0,0.00033424,6]
[326445170,1714915860228,-500.0,0.00033424,6]
[326445171,1714915860238,-500.0,0.00033424,6]
[326445172,1714915860248,-1743.94,0.00033424,6]
[326445173,1714915860258,-556.22,0.00033424,6]
[326445174,1714915860267,-2722.39,0.00033424,6]
[326445175,1714915860276,-1674.63,0.00033424,6]
[326445176,1714915860286,-1022.83,0.00033424,6]
[326445177,1714915860296,-1753.63,0.00033424,6]
[326445178,1714915860305,-834.2,0.00033424,6]
[326445179,1714915860315,-987.05,0.00033424,6]
[326445180,1714915860324,-1091.6,0.00033424,6]
[326445181,1714915860333,-1245.04,0.00033424,6]
[326445182,1714915860342,-1656.75,0.00033424,6]
[326445183,1714915860351,-2873.84,0.00033424,6]
[326445184,1714915860361,-500.0,0.00033424,6]
[326445185,1714915860370,-1096.15,0.00033424,6]
[326445186,1714915860379,-500.0,0.00033424,6]
[326445187,1714915860388,-500.0,0.00033424,6]
[326445188,1714915860397,-1452.23,0.00033424,6]
[326445189,1714915860407,-500.0,0.00033424,6]
[326445190,1714915860416,-500.0,0.00033424,6]
[326445191,1714915860425,-500.0,0.00033424,6]
[326445192,1714915860434,-500.0,0.00033424,6]
[326445193,1714915860444,-711.87,0.00033424,6]
[326445194,1714915860453,-500.0,0.00033424,6]
[326445195,1714915860461,-2175.12,0.00033424,6]
[326445196,1714915860471,-3822.0,0.00033424,6]
[326445197,1714915860480,-500.0,0.00033424,6]
[326445198,1714915860490,-500.0,0.00033424,6]
[326445199,1714915860500,-880.86,0.00033424,6]
[326445200,1714915860509,-1224.63,0.00033424,6]
[326445201,1714915860664,-500.0,0.00033424,6]
[326445202,1714915860691,-500.0,0.00033424,6]
[326445203,1714915860700,-611.5,0.00033424,6]
[326445204,1714915860709,-500.0,0.00033424,6]
[326445205,1714915860718,-1045.1,0.00033424,6]
[326445206,1714915860727,-500.0,0.00033424,6]
[326445207,1714915860735,-1300.91,0.00033424,6]
[326445208,1714915860745,-539.73,0.00033424,6]
[326445209,1714915860754,-1951.33,0.00033424,6]
[326445210,1714915860763,-500.0,0.00033424,6]
[326445211,1714915860772,-1083.01,0.00033424,6]
[326445212,1714915860781,-1376.09,0.00033424,6]
[326445213,1714915860790,-1401.49,0.00033424,6]
[326445214,1714915860799,-831.03,0.00033424,6]
[326445215,1714915860808,-1787.01,0.00033424,6]
[326445216,1714915860817,-660.71,0.00033424,6]
[326445217,1714915860826,-500.0,0.00033424,6]
[326445218,1714915860835,-2124.16,0.00033424,6]
[326445219,1714915860843,-1770.29,0.00033424,6]
[326445220,1714915860852,-500.0,0.00033424,6]
[326445221,1714915860861,-2331.36,0.00033424,6]
[326445222,1714915860870,-873.01,0.00033424,6]
[326445223,1714915860880,-521.98762259,0.00033424,6]
[326445224,1714915860889,-926.33,0.00033424,6]
[326445225,1714915860898,-500.0,0.00033424,6]
[326445226,1714915860907,-3815.69,0.00033424,6]
[326445227,1714915860916,-2580.58,0.00033424,6]
[326445228,1714915860926,-1022.84,0.00033424,6]
[326445229,1714915860934,-500.0,0.00033424,6]
[326445230,1714915860943,-822.69,0.00033424,6]
[326445231,1714915860952,-637.03,0.00033424,6]
[326445232,1714915860961,-500.0,0.00033424,6]
[326445233,1714915860970,-500.0,0.00033424,6]
[326445234,1714915860979,-500.0,0.00033424,6]
[326445235,1714915860989,-500.0,0.00033424,6]
[326445236,1714915860999,-730.41,0.00033424,6]
[326445237,1714915861008,-1193.5,0.00033424,6]
[326445238,1714915861018,-2275.05,0.00033424,6]
[326445239,1714915861028,-681.87,0.00033424,6]
[326445240,1714915861037,-2274.67,0.00033424,6]
[326445241,1714915861046,-794.98,0.00033424,6]
[326445242,1714915861055,-515.18,0.00033424,6]
[326445243,1714915861064,-3927.92,0.00033424,6]
[326445244,1714915861073,-652.04,0.00033424,6]
[326445245,1714915861083,-785.34,0.00033424,6]
[326445246,1714915861092,-500.0,0.00033424,6]
[326445247,1714915861101,-766.99,0.00033424,6]
[326445248,1714915861110,-663.69,0.00033424,6]
[326445249,1714915861119,-611.14,0.00033424,6]
[326445250,1714915861128,-594.25,0.00033424,6]
[326445251,1714915861137,-1116.62,0.00033424,6]
[326445252,1714915861146,-5374.57,0.00033424,6]
[326445253,1714915861155,-500.0,0.00033424,6]
[326445254,1714915861164,-643.73,0.00033424,6]
[326445255,1714915861173,-500.0,0.00033424,6]
[326445256,1714915861183,-2565.05,0.00033424,6]
[326445257,1714915861192,-500.0,0.00033424,6]
[326445258,1714915861203,-1343.72,0.00033424,6]
[326445259,1714915861213,-529.9,0.00033424,6]
[326445260,1714915861222,-2553.24,0.00033424,6]
[326445261,1714915861231,-500.0,0.00033424,6]
[326445262,1714915861240,-1752.05,0.00033424,6]
[326445263,1714915861250,-6360.03,0.00033424,6]
[326445264,1714915861259,-1888.12,0.00033424,6]
[326445265,1714915861268,-500.0,0.00033424,6]
[326445266,1714915861277,-13445.74,0.00033424,6]
[326445267,1714915861286,-500.0,0.00033424,6]
[326445268,1714915861296,-787.99,0.00033424,6]
[326445269,1714915861304,-1176.4,0.00033424,6]
[326445270,1714915861314,-500.0,0.00033424,6]